Department Family,Entity,Date Paid,Expense Type,Expenses Area,Supplier Name,Transaction Reference,Total,VAT Registration Number
Department of Health,Imperial College Healthcare NHS Trust,04/06/2015,Jac - Stock,Stock,A A H Pharmaceuticals Limited,3149449,"48,834.86",Optional requirement only
Department of Health,Imperial College Healthcare NHS Trust,18/06/2015,Jac - Stock,Stock,A A H Pharmaceuticals Limited,3148392,"43,148.93",Optional requirement only
Department of Health,Imperial College Healthcare NHS Trust,02/06/2015,Acton Housing Association,Housing Deductions,A2dominion Housing Group Ltd,3145291,"172,951.34",Optional requirement only
Department of Health,Imperial College Healthcare NHS Trust,23/06/2015,Buildings-Add(Prof Fee)-Purch,Capital Summary,Aarrkk,3162459,"56,113.20",Optional requirement only
Department of Health,Imperial College Healthcare NHS Trust,26/06/2015,Clinical Managed Service Contr,Investigative Sciences & C S,Abbott Laboratories Ltd,3159998,"170,145.35",Optional requirement only
Department of Health,Imperial College Healthcare NHS Trust,26/06/2015,Clinical Managed Service Contr,Investigative Sciences & C S,Abbott Laboratories Ltd,3160048,"418,111.21",Optional requirement only
Department of Health,Imperial College Healthcare NHS Trust,26/06/2015,Buildings-Additions-Purchased,Capital Summary,Alarm Communication Limited,3153475,"31,200.00",Optional requirement only
Department of Health,Imperial College Healthcare NHS Trust,18/06/2015,Contr Other External,Investigative Sciences & C S,Alliance Diagnostic Services Ltd,3160074,"70,740.00",Optional requirement only
Department of Health,Imperial College Healthcare NHS Trust,11/06/2015,Buildings-Additions-Purchased,Capital Summary,Amber Electrical Services Ltd,3140121,"77,339.80",Optional requirement only
Department of Health,Imperial College Healthcare NHS Trust,09/06/2015,P & M-Additions-Purchased,Capital Summary,Avantec Ltd,3153141,"98,284.80",Optional requirement only
Department of Health,Imperial College Healthcare NHS Trust,18/06/2015,P & M-Additions-Purchased,Capital Summary,Avantec Ltd,3157619,"190,761.60",Optional requirement only
Department of Health,Imperial College Healthcare NHS Trust,09/06/2015,Computer Hardware Purch,Finance Directorate,Avantec Ltd,3153141,"186,434.40",Optional requirement only
Department of Health,Imperial College Healthcare NHS Trust,18/06/2015,Consultancy Fees,Other Hq Departments,Baker Tilly Business Services Limited,3160305,"40,443.31",Optional requirement only
Department of Health,Imperial College Healthcare NHS Trust,04/06/2015,Jac - Stock,Stock,Baxalta Uk Limited,3143396,"77,000.00",Optional requirement only
Department of Health,Imperial College Healthcare NHS Trust,09/06/2015,Jac - Stock,Stock,Baxalta Uk Limited,3141422,"38,500.00",Optional requirement only
Department of Health,Imperial College Healthcare NHS Trust,09/06/2015,Jac - Stock,Stock,Baxalta Uk Limited,3148685,"92,400.00",Optional requirement only
Department of Health,Imperial College Healthcare NHS Trust,04/06/2015,Jac - Stock,Stock,Bayer Plc,3149206,"62,928.00",Optional requirement only
Department of Health,Imperial College Healthcare NHS Trust,18/06/2015,Lab Equip Maint / Repairs,Investigative Sciences & C S,Beckman Coulter Uk Ltd,3149925,"114,536.98",Optional requirement only
Department of Health,Imperial College Healthcare NHS Trust,18/06/2015,Lab Equip Maint / Repairs,Investigative Sciences & C S,Beckman Coulter Uk Ltd,3149926,"164,822.48",Optional requirement only
Department of Health,Imperial College Healthcare NHS Trust,04/06/2015,Laboratory Culture Media,Investigative Sciences & C S,Becton Dickinson Uk Ltd,3143507,"76,208.40",Optional requirement only
Department of Health,Imperial College Healthcare NHS Trust,11/06/2015,Ext Contr Laundry,Directorate Of Strategy,Berendsen Uk Limited,3155387,"42,579.15",Optional requirement only
Department of Health,Imperial College Healthcare NHS Trust,23/06/2015,Ext Contr Laundry,Directorate Of Strategy,Berendsen Uk Limited,3162872,"45,596.91",Optional requirement only
Department of Health,Imperial College Healthcare NHS Trust,16/06/2015,Computer Hardware Purch,Information & Comms Technology,Block Solutions Ltd,3157767,"115,796.42",Optional requirement only
Department of Health,Imperial College Healthcare NHS Trust,16/06/2015,Computer Hardware Purch,Information & Comms Technology,Block Solutions Ltd,3157768,"46,003.74",Optional requirement only
Department of Health,Imperial College Healthcare NHS Trust,26/06/2015,Computer Software/License,Information & Comms Technology,Bt Global Services,3164517,"43,910.86",Optional requirement only
Department of Health,Imperial College Healthcare NHS Trust,04/06/2015,Srvcsrecd-Other Nhs,Finance Directorate,Calderstones Partnership-Nhs Foundation Trust,3149204,"34,215.00",Optional requirement only
Department of Health,Imperial College Healthcare NHS Trust,16/06/2015,Srvcsrecd-Other Nhs,Finance Directorate,Calderstones Partnership-Nhs Foundation Trust,3157750,"34,215.00",Optional requirement only
Department of Health,Imperial College Healthcare NHS Trust,23/06/2015,Srvcsrecd-Other Nhs,Finance Directorate,Calderstones Partnership-Nhs Foundation Trust,3157747,"34,215.00",Optional requirement only
Department of Health,Imperial College Healthcare NHS Trust,09/06/2015,"Books, Journals & Subscr",Finance Directorate,Care Quality Commission,3152921,"128,484.00",Optional requirement only
Department of Health,Imperial College Healthcare NHS Trust,11/06/2015,Laboratory Equipment,Investigative Sciences & C S,Cellpath,3142378,"91,829.71",Optional requirement only
Department of Health,Imperial College Healthcare NHS Trust,09/06/2015,Pct - Nwl (Sla),Investigative Sciences & C S,Central London Community Healthcare Nhs Trust,3151518,"37,002.00",Optional requirement only
Department of Health,Imperial College Healthcare NHS Trust,09/06/2015,Pct - Nwl (Sla),Investigative Sciences & C S,Central London Community Healthcare Nhs Trust,3151587,"34,335.00",Optional requirement only
Department of Health,Imperial College Healthcare NHS Trust,23/06/2015,Clinical Managed Service Contr,"Surg, Canc & Cardiovasc Div",Chas A Blatchford And Sons Ltd,3150686,"46,259.60",Optional requirement only
Department of Health,Imperial College Healthcare NHS Trust,23/06/2015,Clinical Managed Service Contr,"Surg, Canc & Cardiovasc Div",Chas A Blatchford And Sons Ltd,3157745,"46,259.60",Optional requirement only
Department of Health,Imperial College Healthcare NHS Trust,26/06/2015,Patients Appl: Purchase,"Surg, Canc & Cardiovasc Div",Chas A Blatchford And Sons Ltd,3157623,"40,432.80",Optional requirement only
Department of Health,Imperial College Healthcare NHS Trust,01/06/2015,Rates,Directorate Of Strategy,City Of Westminster,3143292,"119,016.00",Optional requirement only
Department of Health,Imperial College Healthcare NHS Trust,26/06/2015,Rates,Directorate Of Strategy,City Of Westminster,3157633,"119,016.00",Optional requirement only
Department of Health,Imperial College Healthcare NHS Trust,09/06/2015,Childcare Voucher (Kids Unltd),Childcare Vouchers,Computershare Voucher Services,3151907,"73,700.59",Optional requirement only
Department of Health,Imperial College Healthcare NHS Trust,02/06/2015,Gas,Directorate Of Strategy,Corona Energy,3145317,"59,400.82",Optional requirement only
Department of Health,Imperial College Healthcare NHS Trust,02/06/2015,Gas,Directorate Of Strategy,Corona Energy,3145318,"55,601.94",Optional requirement only
Department of Health,Imperial College Healthcare NHS Trust,02/06/2015,Gas,Directorate Of Strategy,Corona Energy,3145323,"67,913.59",Optional requirement only
Department of Health,Imperial College Healthcare NHS Trust,02/06/2015,Gas,Directorate Of Strategy,Corona Energy,3145326,"126,247.82",Optional requirement only
Department of Health,Imperial College Healthcare NHS Trust,02/06/2015,Jac - Stock,Stock,Csl Behring Uk Ltd,3134872,"27,900.00",Optional requirement only
Department of Health,Imperial College Healthcare NHS Trust,02/06/2015,Jac - Stock,Stock,Csl Behring Uk Ltd,3134873,"33,480.00",Optional requirement only
Department of Health,Imperial College Healthcare NHS Trust,16/06/2015,Jac - Stock,Stock,Csl Behring Uk Ltd,3156236,"78,120.00",Optional requirement only
Department of Health,Imperial College Healthcare NHS Trust,16/06/2015,Jac - Stock,Stock,Csl Behring Uk Ltd,3156237,"27,900.00",Optional requirement only
Department of Health,Imperial College Healthcare NHS Trust,26/06/2015,Computer Software/License,Information & Comms Technology,Cymbio Consulting Ltd,3164519,"30,000.00",Optional requirement only
Department of Health,Imperial College Healthcare NHS Trust,18/06/2015,Med & Surg Maint Contract,"Surg, Canc & Cardiovasc Div",De Lage Landen Leasing Limited,3160678,"77,275.87",Optional requirement only
Department of Health,Imperial College Healthcare NHS Trust,08/06/2015,Laboratory Chemicals/ Reagents,Investigative Sciences & C S,Diamed Gb Ltd,3137155,"183,390.91",Optional requirement only
Department of Health,Imperial College Healthcare NHS Trust,18/06/2015,Other Research Exp - Non-Pay,Rd Medical Directorate,Ealing Hospital Nhs Trust,3157620,"116,325.00",Optional requirement only
Department of Health,Imperial College Healthcare NHS Trust,16/06/2015,Electricity,Directorate Of Strategy,Edf Energy,3158595,"229,760.48",Optional requirement only
Department of Health,Imperial College Healthcare NHS Trust,16/06/2015,Electricity,Directorate Of Strategy,Edf Energy,3158596,"235,717.14",Optional requirement only
Department of Health,Imperial College Healthcare NHS Trust,16/06/2015,Electricity,Directorate Of Strategy,Edf Energy,3158598,"216,093.93",Optional requirement only
Department of Health,Imperial College Healthcare NHS Trust,16/06/2015,Electricity,Directorate Of Strategy,Edf Energy,3158602,"33,567.25",Optional requirement only
Department of Health,Imperial College Healthcare NHS Trust,16/06/2015,Electricity,Directorate Of Strategy,Edf Energy,3158605,"225,633.72",Optional requirement only
Department of Health,Imperial College Healthcare NHS Trust,16/06/2015,Electricity,Directorate Of Strategy,Edf Energy,3158609,"85,314.47",Optional requirement only
Department of Health,Imperial College Healthcare NHS Trust,10/06/2015,Jac - Stock,Stock,Eli Lilly And Company Limited,3148760,"38,400.00",Optional requirement only
Department of Health,Imperial College Healthcare NHS Trust,11/06/2015,Jac - Stock,Stock,Eli Lilly And Company Limited,3150732,"38,400.00",Optional requirement only
Department of Health,Imperial College Healthcare NHS Trust,11/06/2015,Postage & Carriage,Directorate Of Strategy,Francotyp-Postalia Uk Limited,3155019,"30,000.00",Optional requirement only
Department of Health,Imperial College Healthcare NHS Trust,16/06/2015,Postage & Carriage,Directorate Of Strategy,Francotyp-Postalia Uk Limited,3158888,"30,000.00",Optional requirement only
Department of Health,Imperial College Healthcare NHS Trust,30/06/2015,X-Ray Equip Maint/Repair,Investigative Sciences & C S,Ge Medical Systems Limited,3168494,"284,910.64",Optional requirement only
Department of Health,Imperial College Healthcare NHS Trust,04/06/2015,Clinical Managed Service Contr,Investigative Sciences & C S,Genmed.Me Ltd,3137156,"38,537.41",Optional requirement only
Department of Health,Imperial College Healthcare NHS Trust,04/06/2015,Clinical Managed Service Contr,Investigative Sciences & C S,Genmed.Me Ltd,3137157,"49,851.40",Optional requirement only
Department of Health,Imperial College Healthcare NHS Trust,16/06/2015,Clinical Managed Service Contr,Investigative Sciences & C S,Genmed.Me Ltd,3153185,"507,838.86",Optional requirement only
Department of Health,Imperial College Healthcare NHS Trust,18/06/2015,Clinical Managed Service Contr,Investigative Sciences & C S,Genmed.Me Ltd,3142408,"142,937.63",Optional requirement only
Department of Health,Imperial College Healthcare NHS Trust,11/06/2015,Jac - Stock,Stock,Gilead Sciences Ltd,3143374,"52,740.00",Optional requirement only
Department of Health,Imperial College Healthcare NHS Trust,29/06/2015,Med & Surg Equip General,"Surg, Canc & Cardiovasc Div",Hansen Medical Inc,3125168,"33,120.00",Optional requirement only
Department of Health,Imperial College Healthcare NHS Trust,29/06/2015,Med & Surg Maint Contract,"Surg, Canc & Cardiovasc Div",Hansen Medical Inc,3154485,"42,000.00",Optional requirement only
Department of Health,Imperial College Healthcare NHS Trust,09/06/2015,Miscellaneous Expenditure,Division Of Medicine,Hayes Cottage Renal Unit Ltd,3153328,"68,244.00",Optional requirement only
Department of Health,Imperial College Healthcare NHS Trust,09/06/2015,Jac - Stock,Stock,Healthcare At Home Ltd,3151915,"74,110.40",Optional requirement only
Department of Health,Imperial College Healthcare NHS Trust,16/06/2015,Jac - Stock,Stock,Healthcare Product Services Ltd,3156164,"40,680.00",Optional requirement only
Department of Health,Imperial College Healthcare NHS Trust,26/06/2015,Jac - Stock,Stock,Healthcare Product Services Ltd,3149243,"406,800.00",Optional requirement only
Department of Health,Imperial College Healthcare NHS Trust,16/06/2015,Jac - Stock,Stock,Idis Limited,3157370,"39,420.00",Optional requirement only
Department of Health,Imperial College Healthcare NHS Trust,16/06/2015,"Books, Journals & Subscr",Finance Directorate,Imperial College Health Partners,3157740,"110,000.00",Optional requirement only
Department of Health,Imperial College Healthcare NHS Trust,23/06/2015,Dist Award - Local Cea,Division Of Medicine,Imperial College London,3162550,"33,630.03",Optional requirement only
Department of Health,Imperial College Healthcare NHS Trust,23/06/2015,Dist Award - Nat Cea,Division Of Medicine,Imperial College London,3162550,"98,713.04",Optional requirement only
Department of Health,Imperial College Healthcare NHS Trust,23/06/2015,Ic Pay Recharge In: Med,Division Of Medicine,Imperial College London,3162550,"62,003.24",Optional requirement only
Department of Health,Imperial College Healthcare NHS Trust,23/06/2015,Ic Pay Recharge In: Med,Division Of Medicine,Imperial College London,3162551,"26,509.96",Optional requirement only
Department of Health,Imperial College Healthcare NHS Trust,23/06/2015,Ic Pay Recharge In: Med,Division Of Medicine,Imperial College London,3162552,"114,342.46",Optional requirement only
Department of Health,Imperial College Healthcare NHS Trust,26/06/2015,Ic Pay Recharge In: Med,Division Of Medicine,Imperial College London,3164974,"41,596.00",Optional requirement only
Department of Health,Imperial College Healthcare NHS Trust,23/06/2015,Dist Award - Nat Cea,Division Of Women And Children,Imperial College London,3162550,"46,641.93",Optional requirement only
Department of Health,Imperial College Healthcare NHS Trust,23/06/2015,Ic Pay Recharge In: Med,Division Of Women And Children,Imperial College London,3162552,"69,258.88",Optional requirement only
Department of Health,Imperial College Healthcare NHS Trust,23/06/2015,Dist Award - Nat Cea,Investigative Sciences & C S,Imperial College London,3162550,"25,361.55",Optional requirement only
Department of Health,Imperial College Healthcare NHS Trust,23/06/2015,Ic Pay Recharge In: Med,Investigative Sciences & C S,Imperial College London,3162552,"52,724.67",Optional requirement only
Department of Health,Imperial College Healthcare NHS Trust,23/06/2015,Dist Award - Nat Cea,Medical Director Summary,Imperial College London,3162550,"35,904.07",Optional requirement only
Department of Health,Imperial College Healthcare NHS Trust,09/06/2015,Other Research Exp - Pay,Rd Iscs Division,Imperial College London,3153346,"418,401.46",Optional requirement only
Department of Health,Imperial College Healthcare NHS Trust,09/06/2015,Other Research Exp - Pay,Rd Iscs Division,Imperial College London,3153361,"29,687.25",Optional requirement only
Department of Health,Imperial College Healthcare NHS Trust,09/06/2015,Other Research Exp - Non-Pay,Rd Medical Directorate,Imperial College London,3153349,"91,895.02",Optional requirement only
Department of Health,Imperial College Healthcare NHS Trust,09/06/2015,Other Research Exp - Pay,Rd Medical Directorate,Imperial College London,3151556,"29,923.82",Optional requirement only
Department of Health,Imperial College Healthcare NHS Trust,09/06/2015,Other Research Exp - Pay,Rd Medical Directorate,Imperial College London,3151559,"25,674.10",Optional requirement only
Department of Health,Imperial College Healthcare NHS Trust,09/06/2015,Other Research Exp - Pay,Rd Medical Directorate,Imperial College London,3151563,"28,381.09",Optional requirement only
Department of Health,Imperial College Healthcare NHS Trust,09/06/2015,Other Research Exp - Pay,Rd Medical Directorate,Imperial College London,3153349,"148,750.40",Optional requirement only
Department of Health,Imperial College Healthcare NHS Trust,16/06/2015,Other Research Exp - Pay,Rd Medical Directorate,Imperial College London,3157819,"42,688.10",Optional requirement only
Department of Health,Imperial College Healthcare NHS Trust,16/06/2015,Other Research Exp - Pay,Rd Medical Directorate,Imperial College London,3157874,"26,932.43",Optional requirement only
Department of Health,Imperial College Healthcare NHS Trust,02/06/2015,Other Research Exp - Pay,Rd Medicine Division,Imperial College London,3147752,"99,891.96",Optional requirement only
Department of Health,Imperial College Healthcare NHS Trust,09/06/2015,Other Research Exp - Pay,Rd Medicine Division,Imperial College London,3151564,"30,014.70",Optional requirement only
Department of Health,Imperial College Healthcare NHS Trust,09/06/2015,Other Research Exp - Pay,Rd Medicine Division,Imperial College London,3153359,"34,119.30",Optional requirement only
Department of Health,Imperial College Healthcare NHS Trust,16/06/2015,Other Research Exp - Pay,Rd Medicine Division,Imperial College London,3157798,"35,675.39",Optional requirement only
Department of Health,Imperial College Healthcare NHS Trust,16/06/2015,Other Research Exp - Pay,Rd Medicine Division,Imperial College London,3157875,"37,084.13",Optional requirement only
Department of Health,Imperial College Healthcare NHS Trust,16/06/2015,Other Research Exp - Pay,Rd Medicine Division,Imperial College London,3157877,"28,839.09",Optional requirement only
Department of Health,Imperial College Healthcare NHS Trust,16/06/2015,Other Research Exp - Pay,Rd Surgery & Cancer Division,Imperial College London,3157796,"35,852.87",Optional requirement only
Department of Health,Imperial College Healthcare NHS Trust,16/06/2015,Other Research Exp - Pay,Rd Surgery & Cancer Division,Imperial College London,3157855,"33,116.07",Optional requirement only
Department of Health,Imperial College Healthcare NHS Trust,16/06/2015,Other Research Exp - Pay,Rd Surgery & Cancer Division,Imperial College London,3157861,"30,916.42",Optional requirement only
Department of Health,Imperial College Healthcare NHS Trust,23/06/2015,Dist Award - Local Cea,"Surg, Canc & Cardiovasc Div",Imperial College London,3162550,"50,976.54",Optional requirement only
Department of Health,Imperial College Healthcare NHS Trust,23/06/2015,Dist Award - Nat Cea,"Surg, Canc & Cardiovasc Div",Imperial College London,3162550,"77,355.23",Optional requirement only
Department of Health,Imperial College Healthcare NHS Trust,23/06/2015,Dist Award - Nat Cea,"Surg, Canc & Cardiovasc Div",Imperial College London,3162551,"41,398.00",Optional requirement only
Department of Health,Imperial College Healthcare NHS Trust,23/06/2015,Ic Pay Recharge In: Med,"Surg, Canc & Cardiovasc Div",Imperial College London,3162550,"109,286.69",Optional requirement only
Department of Health,Imperial College Healthcare NHS Trust,23/06/2015,Ic Pay Recharge In: Med,"Surg, Canc & Cardiovasc Div",Imperial College London,3162552,"235,136.34",Optional requirement only
Department of Health,Imperial College Healthcare NHS Trust,18/06/2015,Med & Surg Maint Contract,Investigative Sciences & C S,Jac Computer Services Ltd,3161136,"63,126.00",Optional requirement only
Department of Health,Imperial College Healthcare NHS Trust,02/06/2015,Jac - Stock,Stock,Janssen-Cilag Ltd,3145575,"31,265.40",Optional requirement only
Department of Health,Imperial College Healthcare NHS Trust,02/06/2015,It Eqpt-Additions,Capital Summary,Kelway (Uk) Ltd,3146003,"469,774.78",Optional requirement only
Department of Health,Imperial College Healthcare NHS Trust,04/06/2015,It Eqpt-Additions,Capital Summary,Kelway (Uk) Ltd,3144373,"30,248.40",Optional requirement only
Department of Health,Imperial College Healthcare NHS Trust,16/06/2015,Computer Hardware Purch,Finance Directorate,Kelway (Uk) Ltd,3157581,"64,230.50",Optional requirement only
Department of Health,Imperial College Healthcare NHS Trust,04/06/2015,Clinical Managed Service Contr,Investigative Sciences & C S,Leica Microsystems (Uk) Ltd,3149527,"74,446.09",Optional requirement only
Department of Health,Imperial College Healthcare NHS Trust,09/06/2015,Clinical Managed Service Contr,Investigative Sciences & C S,Leica Microsystems (Uk) Ltd,3153191,"74,446.09",Optional requirement only
Department of Health,Imperial College Healthcare NHS Trust,26/06/2015,Rent,Ravenscourt Directorate,Les Geonnais Limited,3163662,"1,395,000.00",Optional requirement only
Department of Health,Imperial College Healthcare NHS Trust,04/06/2015,Drugs Nhs,Investigative Sciences & C S,Lloyds Retail Chemists Ltd,3141800,"2,880,300.79",Optional requirement only
Department of Health,Imperial College Healthcare NHS Trust,18/06/2015,Rates,Directorate Of Strategy,London Borough Hammersmith & Fulham,3160632,"137,997.00",Optional requirement only
Department of Health,Imperial College Healthcare NHS Trust,18/06/2015,Rates,Directorate Of Strategy,London Borough Hammersmith & Fulham,3160634,"157,491.00",Optional requirement only
Department of Health,Imperial College Healthcare NHS Trust,02/06/2015,Gp Sessional Doctors,Division Of Medicine,London Central & West Unscheduled Care Collab,3146080,"42,690.65",Optional requirement only
Department of Health,Imperial College Healthcare NHS Trust,02/06/2015,Gp Sessional Doctors,Division Of Medicine,London Central & West Unscheduled Care Collab,3146083,"52,730.99",Optional requirement only
Department of Health,Imperial College Healthcare NHS Trust,16/06/2015,Gp Salaried Doctors,Division Of Medicine,London Central & West Unscheduled Care Collab,3157534,"73,128.82",Optional requirement only
Department of Health,Imperial College Healthcare NHS Trust,16/06/2015,Gp Salaried Doctors,Division Of Medicine,London Central & West Unscheduled Care Collab,3157535,"73,128.82",Optional requirement only
Department of Health,Imperial College Healthcare NHS Trust,16/06/2015,Gp Salaried Doctors,Division Of Medicine,London Central & West Unscheduled Care Collab,3157536,"73,128.82",Optional requirement only
Department of Health,Imperial College Healthcare NHS Trust,16/06/2015,Non-Nhs Pay Recharge In: Med,Division Of Medicine,London Central & West Unscheduled Care Collab,3157537,"182,721.44",Optional requirement only
Department of Health,Imperial College Healthcare NHS Trust,16/06/2015,Non-Nhs Pay Recharge In: Med,Division Of Medicine,London Central & West Unscheduled Care Collab,3157538,"182,721.44",Optional requirement only
Department of Health,Imperial College Healthcare NHS Trust,16/06/2015,Non-Nhs Pay Recharge In: Med,Division Of Medicine,London Central & West Unscheduled Care Collab,3157539,"182,721.44",Optional requirement only
Department of Health,Imperial College Healthcare NHS Trust,16/06/2015,Non-Nhs Pay Rechge In Clerical,Division Of Medicine,London Central & West Unscheduled Care Collab,3157537,"44,494.66",Optional requirement only
Department of Health,Imperial College Healthcare NHS Trust,16/06/2015,Non-Nhs Pay Rechge In Clerical,Division Of Medicine,London Central & West Unscheduled Care Collab,3157538,"44,494.66",Optional requirement only
Department of Health,Imperial College Healthcare NHS Trust,16/06/2015,Non-Nhs Pay Rechge In Clerical,Division Of Medicine,London Central & West Unscheduled Care Collab,3157539,"44,494.66",Optional requirement only
Department of Health,Imperial College Healthcare NHS Trust,16/06/2015,Pfh Admin Staff,Division Of Medicine,London Central & West Unscheduled Care Collab,3157534,"214,562.05",Optional requirement only
Department of Health,Imperial College Healthcare NHS Trust,16/06/2015,Pfh Admin Staff,Division Of Medicine,London Central & West Unscheduled Care Collab,3157535,"214,562.05",Optional requirement only
Department of Health,Imperial College Healthcare NHS Trust,16/06/2015,Pfh Admin Staff,Division Of Medicine,London Central & West Unscheduled Care Collab,3157536,"214,562.05",Optional requirement only
Department of Health,Imperial College Healthcare NHS Trust,16/06/2015,Purch Hcare Independent Sector,Division Of Medicine,London Central & West Unscheduled Care Collab,3157537,"113,505.27",Optional requirement only
Department of Health,Imperial College Healthcare NHS Trust,16/06/2015,Purch Hcare Independent Sector,Division Of Medicine,London Central & West Unscheduled Care Collab,3157538,"113,505.27",Optional requirement only
Department of Health,Imperial College Healthcare NHS Trust,16/06/2015,Purch Hcare Independent Sector,Division Of Medicine,London Central & West Unscheduled Care Collab,3157539,"113,505.27",Optional requirement only
Department of Health,Imperial College Healthcare NHS Trust,18/06/2015,Gp Salaried Doctors,Division Of Medicine,London Central & West Unscheduled Care Collab,3160121,"43,928.56",Optional requirement only
Department of Health,Imperial College Healthcare NHS Trust,18/06/2015,Gp Salaried Doctors,Division Of Medicine,London Central & West Unscheduled Care Collab,3160126,"43,928.56",Optional requirement only
Department of Health,Imperial College Healthcare NHS Trust,18/06/2015,Gp Salaried Doctors,Division Of Medicine,London Central & West Unscheduled Care Collab,3160131,"43,928.56",Optional requirement only
Department of Health,Imperial College Healthcare NHS Trust,26/06/2015,Gp Salaried Doctors,Division Of Medicine,London Central & West Unscheduled Care Collab,3165503,"78,258.23",Optional requirement only
Department of Health,Imperial College Healthcare NHS Trust,02/06/2015,Decontamination Services,Directorate Of Strategy,London North West Healthcare Nhs Trust,3122268,"41,340.00",Optional requirement only
Department of Health,Imperial College Healthcare NHS Trust,23/06/2015,Miscellaneous Expenditure,Division Of Medicine,London North West Healthcare Nhs Trust,3162084,"79,470.52",Optional requirement only
Department of Health,Imperial College Healthcare NHS Trust,16/06/2015,Bldg/Eng Equip Maint/Rep,Directorate Of Strategy,London Surfacing Company Ltd,3151783,"63,678.85",Optional requirement only
Department of Health,Imperial College Healthcare NHS Trust,04/06/2015,Buildings-Additions-Purchased,Capital Summary,M&J Group (Construction & Roofing) Ltd,3149603,"61,325.42",Optional requirement only
Department of Health,Imperial College Healthcare NHS Trust,23/06/2015,Isotopes,Investigative Sciences & C S,Mallinckrodt Uk Commercial Ltd,3162756,"31,558.80",Optional requirement only
Department of Health,Imperial College Healthcare NHS Trust,02/06/2015,Consultancy Fees,Medical Director Summary,Mckinsey & Company,3148262,"648,000.00",Optional requirement only
Department of Health,Imperial College Healthcare NHS Trust,04/06/2015,Consultancy Fees,Medical Director Summary,Mckinsey & Company,3150574,"648,000.00",Optional requirement only
Department of Health,Imperial College Healthcare NHS Trust,18/06/2015,Buildings-Additions-Purchased,Capital Summary,Me Construction Ltd,3158887,"44,380.80",Optional requirement only
Department of Health,Imperial College Healthcare NHS Trust,18/06/2015,Buildings-Additions-Purchased,Capital Summary,Me Construction Ltd,3159268,"90,422.40",Optional requirement only
Department of Health,Imperial College Healthcare NHS Trust,18/06/2015,Buildings-Additions-Purchased,Capital Summary,Me Construction Ltd,3161051,"49,941.60",Optional requirement only
Department of Health,Imperial College Healthcare NHS Trust,29/06/2015,Buildings-Additions-Purchased,Capital Summary,Me Construction Ltd,3161236,"134,803.20",Optional requirement only
Department of Health,Imperial College Healthcare NHS Trust,23/06/2015,P & M-Additions-Purchased,Capital Summary,Medical Imaging Systems Ltd,3162469,"174,000.00",Optional requirement only
Department of Health,Imperial College Healthcare NHS Trust,02/06/2015,Laboratory External Tests,Investigative Sciences & C S,Micropathology Ltd,3124892,"25,256.50",Optional requirement only
Department of Health,Imperial College Healthcare NHS Trust,26/06/2015,Non-Nhs Pay Recharge In: Med,"Surg, Canc & Cardiovasc Div",Ministry Of Defence,3165389,"25,007.00",Optional requirement only
Department of Health,Imperial College Healthcare NHS Trust,11/06/2015,Staff Location/Bleeps,Information & Comms Technology,Multitone Electronics Plc,3155380,"93,942.16",Optional requirement only
Department of Health,Imperial College Healthcare NHS Trust,09/06/2015,Blood Products,Investigative Sciences & C S,Nhs Blood And Transplant,3153124,"336,012.67",Optional requirement only
Department of Health,Imperial College Healthcare NHS Trust,11/06/2015,Blood Products,Investigative Sciences & C S,Nhs Blood And Transplant,3155476,"72,292.25",Optional requirement only
Department of Health,Imperial College Healthcare NHS Trust,16/06/2015,Blood Products,Investigative Sciences & C S,Nhs Blood And Transplant,3158376,"175,876.42",Optional requirement only
Department of Health,Imperial College Healthcare NHS Trust,16/06/2015,Blood Products,Investigative Sciences & C S,Nhs Blood And Transplant,3158377,"175,876.42",Optional requirement only
Department of Health,Imperial College Healthcare NHS Trust,26/06/2015,Blood Products,Investigative Sciences & C S,Nhs Blood And Transplant,3163695,"336,012.67",Optional requirement only
Department of Health,Imperial College Healthcare NHS Trust,26/06/2015,Blood Products,Investigative Sciences & C S,Nhs Blood And Transplant,3163696,"336,012.67",Optional requirement only
Department of Health,Imperial College Healthcare NHS Trust,26/06/2015,Blood Products,Investigative Sciences & C S,Nhs Blood And Transplant,3163697,"333,296.83",Optional requirement only
Department of Health,Imperial College Healthcare NHS Trust,26/06/2015,Blood Products,Investigative Sciences & C S,Nhs Blood And Transplant,3163698,"71,463.00",Optional requirement only
Department of Health,Imperial College Healthcare NHS Trust,26/06/2015,Blood Products,Investigative Sciences & C S,Nhs Blood And Transplant,3163733,"174,326.58",Optional requirement only
Department of Health,Imperial College Healthcare NHS Trust,26/06/2015,Drugs Nhs,Investigative Sciences & C S,Nhs Business Services Authority,3164978,"39,850.14",Optional requirement only
Department of Health,Imperial College Healthcare NHS Trust,29/06/2015,Insurance Costs,Directorate Of Strategy,Nhs Litigation Authority,3167419,"45,940.50",Optional requirement only
Department of Health,Imperial College Healthcare NHS Trust,29/06/2015,Cnst Contributions,Division Of Women And Children,Nhs Litigation Authority,3167417,"850,756.10",Optional requirement only
Department of Health,Imperial College Healthcare NHS Trust,29/06/2015,Cnst Contributions,Other Hq Departments,Nhs Litigation Authority,3167417,"1,656,052.40",Optional requirement only
Department of Health,Imperial College Healthcare NHS Trust,16/06/2015,P & M-Additions-Purchased,Capital Summary,Nhs Supply Chain,3157776,"42,000.00",Optional requirement only
Department of Health,Imperial College Healthcare NHS Trust,09/06/2015,Supplies Issues Recharges,Stock,Nhs Supply Chain,3153205,"111,160.93",Optional requirement only
Department of Health,Imperial College Healthcare NHS Trust,09/06/2015,Supplies Issues Recharges,Stock,Nhs Supply Chain,3153342,"106,694.17",Optional requirement only
Department of Health,Imperial College Healthcare NHS Trust,09/06/2015,Supplies Issues Recharges,Stock,Nhs Supply Chain,3153343,"128,940.50",Optional requirement only
Department of Health,Imperial College Healthcare NHS Trust,09/06/2015,Supplies Issues Recharges,Stock,Nhs Supply Chain,3153344,"96,806.46",Optional requirement only
Department of Health,Imperial College Healthcare NHS Trust,09/06/2015,Supplies Issues Recharges,Stock,Nhs Supply Chain,3153345,"89,736.56",Optional requirement only
Department of Health,Imperial College Healthcare NHS Trust,09/06/2015,Supplies Issues Recharges,Stock,Nhs Supply Chain,3153347,"96,299.00",Optional requirement only
Department of Health,Imperial College Healthcare NHS Trust,09/06/2015,Supplies Issues Recharges,Stock,Nhs Supply Chain,3153350,"97,100.37",Optional requirement only
Department of Health,Imperial College Healthcare NHS Trust,09/06/2015,Supplies Issues Recharges,Stock,Nhs Supply Chain,3153352,"99,670.63",Optional requirement only
Department of Health,Imperial College Healthcare NHS Trust,09/06/2015,Supplies Issues Recharges,Stock,Nhs Supply Chain,3153353,"116,901.16",Optional requirement only
Department of Health,Imperial College Healthcare NHS Trust,16/06/2015,Supplies Issues Recharges,Stock,Nhs Supply Chain,3156835,"108,540.49",Optional requirement only
Department of Health,Imperial College Healthcare NHS Trust,16/06/2015,Supplies Issues Recharges,Stock,Nhs Supply Chain,3156836,"69,519.22",Optional requirement only
Department of Health,Imperial College Healthcare NHS Trust,16/06/2015,Supplies Issues Recharges,Stock,Nhs Supply Chain,3156841,"132,512.06",Optional requirement only
Department of Health,Imperial College Healthcare NHS Trust,16/06/2015,Supplies Issues Recharges,Stock,Nhs Supply Chain,3156845,"105,834.91",Optional requirement only
Department of Health,Imperial College Healthcare NHS Trust,16/06/2015,Supplies Issues Recharges,Stock,Nhs Supply Chain,3156857,"135,465.93",Optional requirement only
Department of Health,Imperial College Healthcare NHS Trust,16/06/2015,Supplies Issues Recharges,Stock,Nhs Supply Chain,3156862,"71,480.69",Optional requirement only
Department of Health,Imperial College Healthcare NHS Trust,16/06/2015,Supplies Issues Recharges,Stock,Nhs Supply Chain,3156888,"111,487.16",Optional requirement only
Department of Health,Imperial College Healthcare NHS Trust,16/06/2015,Supplies Issues Recharges,Stock,Nhs Supply Chain,3156889,"130,972.76",Optional requirement only
Department of Health,Imperial College Healthcare NHS Trust,16/06/2015,Supplies Issues Recharges,Stock,Nhs Supply Chain,3156890,"96,214.54",Optional requirement only
Department of Health,Imperial College Healthcare NHS Trust,16/06/2015,Supplies Issues Recharges,Stock,Nhs Supply Chain,3156891,"82,109.49",Optional requirement only
Department of Health,Imperial College Healthcare NHS Trust,16/06/2015,Supplies Issues Recharges,Stock,Nhs Supply Chain,3156892,"124,288.01",Optional requirement only
Department of Health,Imperial College Healthcare NHS Trust,23/06/2015,Supplies Issues Recharges,Stock,Nhs Supply Chain,3162062,"126,658.70",Optional requirement only
Department of Health,Imperial College Healthcare NHS Trust,23/06/2015,Supplies Issues Recharges,Stock,Nhs Supply Chain,3162065,"94,713.11",Optional requirement only
Department of Health,Imperial College Healthcare NHS Trust,23/06/2015,Supplies Issues Recharges,Stock,Nhs Supply Chain,3162080,"87,826.00",Optional requirement only
Department of Health,Imperial College Healthcare NHS Trust,26/06/2015,Supplies Issues Recharges,Stock,Nhs Supply Chain,3165505,"100,443.18",Optional requirement only
Department of Health,Imperial College Healthcare NHS Trust,26/06/2015,Supplies Issues Recharges,Stock,Nhs Supply Chain,3165509,"88,365.86",Optional requirement only
Department of Health,Imperial College Healthcare NHS Trust,26/06/2015,Supplies Issues Recharges,Stock,Nhs Supply Chain,3165510,"131,126.09",Optional requirement only
Department of Health,Imperial College Healthcare NHS Trust,02/06/2015,Jac - Stock,Stock,Novartis Pharmaceutical (Uk) Ltd,3145576,"42,214.44",Optional requirement only
Department of Health,Imperial College Healthcare NHS Trust,18/06/2015,Jac - Stock,Stock,Novartis Pharmaceutical (Uk) Ltd,3153611,"42,748.80",Optional requirement only
Department of Health,Imperial College Healthcare NHS Trust,01/06/2015,Contr Photocopier Rental,Directorate Of Strategy,Oakleaf Surveying Limited,3140057,"41,219.40",Optional requirement only
Department of Health,Imperial College Healthcare NHS Trust,02/06/2015,P & M-Additions-Purchased,Capital Summary,Olympus Keymed,3148052,"84,433.44",Optional requirement only
Department of Health,Imperial College Healthcare NHS Trust,02/06/2015,P & M-Additions-Purchased,Capital Summary,Olympus Keymed,3148298,"126,439.08",Optional requirement only
Department of Health,Imperial College Healthcare NHS Trust,02/06/2015,P & M-Additions-Purchased,Capital Summary,Olympus Keymed,3148299,"239,207.30",Optional requirement only
Department of Health,Imperial College Healthcare NHS Trust,02/06/2015,P & M-Additions-Purchased,Capital Summary,Olympus Keymed,3148300,"42,146.36",Optional requirement only
Department of Health,Imperial College Healthcare NHS Trust,15/06/2015,P & M-Additions-Purchased,Capital Summary,Olympus Keymed,3149599,"239,207.30",Optional requirement only
Department of Health,Imperial College Healthcare NHS Trust,11/06/2015,Interpreting Services,Investigative Sciences & C S,Pearl Linguistics Ltd,3155678,"35,829.28",Optional requirement only
Department of Health,Imperial College Healthcare NHS Trust,09/06/2015,Consultancy Fees,Director Of Operations,Pricewaterhousecoopers Llp,3144139,"92,119.36",Optional requirement only
Department of Health,Imperial College Healthcare NHS Trust,02/06/2015,Agency Nursing: Qualified,Division Of Medicine,Reed,3145831,"72,401.98",Optional requirement only
Department of Health,Imperial College Healthcare NHS Trust,16/06/2015,Agency Nursing: Qualified,Division Of Medicine,Reed,3156769,"70,672.46",Optional requirement only
Department of Health,Imperial College Healthcare NHS Trust,16/06/2015,Agency Nursing: Qualified,Division Of Medicine,Reed,3156770,"136,580.71",Optional requirement only
Department of Health,Imperial College Healthcare NHS Trust,02/06/2015,Agency Nursing: Qualified,Division Of Women And Children,Reed,3145831,"32,697.89",Optional requirement only
Department of Health,Imperial College Healthcare NHS Trust,16/06/2015,Agency Nursing: Qualified,Division Of Women And Children,Reed,3156769,"46,610.46",Optional requirement only
Department of Health,Imperial College Healthcare NHS Trust,16/06/2015,Agency Nursing: Qualified,Division Of Women And Children,Reed,3156770,"93,753.47",Optional requirement only
Department of Health,Imperial College Healthcare NHS Trust,02/06/2015,Agency Nursing: Qualified,Investigative Sciences & C S,Reed,3145831,"35,496.31",Optional requirement only
Department of Health,Imperial College Healthcare NHS Trust,02/06/2015,Agency Scient & Prof Qualified,Investigative Sciences & C S,Reed,3145917,"62,183.83",Optional requirement only
Department of Health,Imperial College Healthcare NHS Trust,02/06/2015,Agency Scient & Prof Qualified,Investigative Sciences & C S,Reed,3145918,"66,647.19",Optional requirement only
Department of Health,Imperial College Healthcare NHS Trust,16/06/2015,Agency Nursing: Qualified,Investigative Sciences & C S,Reed,3156769,"46,717.32",Optional requirement only
Department of Health,Imperial College Healthcare NHS Trust,16/06/2015,Agency Nursing: Qualified,Investigative Sciences & C S,Reed,3156770,"75,217.06",Optional requirement only
Department of Health,Imperial College Healthcare NHS Trust,16/06/2015,Agency Scient & Prof Qualified,Investigative Sciences & C S,Reed,3157508,"49,545.26",Optional requirement only
Department of Health,Imperial College Healthcare NHS Trust,18/06/2015,Agency Scient & Prof Qualified,Investigative Sciences & C S,Reed,3160308,"59,200.16",Optional requirement only
Department of Health,Imperial College Healthcare NHS Trust,16/06/2015,Agency Nursing: Qualified,Private Patients Directorate,Reed,3156769,"32,165.61",Optional requirement only
Department of Health,Imperial College Healthcare NHS Trust,16/06/2015,Agency Nursing: Qualified,Private Patients Directorate,Reed,3156770,"39,911.09",Optional requirement only
Department of Health,Imperial College Healthcare NHS Trust,02/06/2015,Agency Nursing: Qualified,"Surg, Canc & Cardiovasc Div",Reed,3145831,"82,780.96",Optional requirement only
Department of Health,Imperial College Healthcare NHS Trust,02/06/2015,Agency Scient & Prof Qualified,"Surg, Canc & Cardiovasc Div",Reed,3145917,"30,412.71",Optional requirement only
Department of Health,Imperial College Healthcare NHS Trust,16/06/2015,Agency Nursing: Qualified,"Surg, Canc & Cardiovasc Div",Reed,3156769,"81,448.35",Optional requirement only
Department of Health,Imperial College Healthcare NHS Trust,16/06/2015,Agency Nursing: Qualified,"Surg, Canc & Cardiovasc Div",Reed,3156770,"143,332.21",Optional requirement only
Department of Health,Imperial College Healthcare NHS Trust,02/06/2015,Jac - Stock,Stock,Roche Products Ltd,3145634,"89,999.42",Optional requirement only
Department of Health,Imperial College Healthcare NHS Trust,09/06/2015,Jac - Stock,Stock,Roche Products Ltd,3148740,"34,221.60",Optional requirement only
Department of Health,Imperial College Healthcare NHS Trust,09/06/2015,Jac - Stock,Stock,Roche Products Ltd,3148741,"36,190.32",Optional requirement only
Department of Health,Imperial College Healthcare NHS Trust,09/06/2015,Jac - Stock,Stock,Roche Products Ltd,3148746,"125,733.60",Optional requirement only
Department of Health,Imperial College Healthcare NHS Trust,09/06/2015,Jac - Stock,Stock,Roche Products Ltd,3152389,"46,180.75",Optional requirement only
Department of Health,Imperial College Healthcare NHS Trust,09/06/2015,Jac - Stock,Stock,Roche Products Ltd,3152394,"54,106.66",Optional requirement only
Department of Health,Imperial College Healthcare NHS Trust,26/06/2015,Jac - Stock,Stock,Roche Products Ltd,3152206,"48,339.84",Optional requirement only
Department of Health,Imperial College Healthcare NHS Trust,17/06/2015,Med & Surg Equip Hire,"Surg, Canc & Cardiovasc Div",Shawbrook Asset Finance,3160652,"60,091.67",Optional requirement only
Department of Health,Imperial College Healthcare NHS Trust,16/06/2015,Engineering Contracts,Directorate Of Strategy,Siemens Financial Services Ltd,3157449,"53,058.98",Optional requirement only
Department of Health,Imperial College Healthcare NHS Trust,09/06/2015,Med & Surg Equip Leases,Division Of Medicine,Siemens Financial Services Ltd,3151860,"110,580.00",Optional requirement only
Department of Health,Imperial College Healthcare NHS Trust,23/06/2015,Isotopes,Investigative Sciences & C S,Siemens Healthcare Plc,3163028,"35,616.00",Optional requirement only
Department of Health,Imperial College Healthcare NHS Trust,23/06/2015,Isotopes,Investigative Sciences & C S,Siemens Healthcare Plc,3163492,"42,600.00",Optional requirement only
Department of Health,Imperial College Healthcare NHS Trust,23/06/2015,Isotopes,Investigative Sciences & C S,Siemens Healthcare Plc,3163493,"39,720.00",Optional requirement only
Department of Health,Imperial College Healthcare NHS Trust,23/06/2015,Ext Contract Portering,Directorate Of Strategy,Sodexo Limited,3144538,"459,593.15",Optional requirement only
Department of Health,Imperial College Healthcare NHS Trust,23/06/2015,Ext Contr Catering,Directorate Of Strategy,Sodexo Limited,3144538,"629,214.95",Optional requirement only
Department of Health,Imperial College Healthcare NHS Trust,23/06/2015,Ext Contr Catering,Directorate Of Strategy,Sodexo Limited,3159316,"43,385.61",Optional requirement only
Department of Health,Imperial College Healthcare NHS Trust,23/06/2015,Ext Contr Domestics,Directorate Of Strategy,Sodexo Limited,3144538,"1,223,979.54",Optional requirement only
Department of Health,Imperial College Healthcare NHS Trust,23/06/2015,Ext Contr Oth Hotel Srv,Directorate Of Strategy,Sodexo Limited,3144538,"91,001.20",Optional requirement only
Department of Health,Imperial College Healthcare NHS Trust,18/06/2015,Ext Contract Portering,Division Of Medicine,Sodexo Limited,3159315,"37,134.63",Optional requirement only
Department of Health,Imperial College Healthcare NHS Trust,18/06/2015,Ext Contr Oth Hotel Srv,Private Patients Directorate,Sodexo Limited,3159330,"168,458.00",Optional requirement only
Department of Health,Imperial College Healthcare NHS Trust,18/06/2015,Ext Contr Oth Hotel Srv,Private Patients Directorate,Sodexo Limited,3159331,"168,458.00",Optional requirement only
Department of Health,Imperial College Healthcare NHS Trust,18/06/2015,Ext Contr Oth Hotel Srv,Private Patients Directorate,Sodexo Limited,3159332,"168,458.00",Optional requirement only
Department of Health,Imperial College Healthcare NHS Trust,18/06/2015,Ext Contr Oth Hotel Srv,Private Patients Directorate,Sodexo Limited,3159333,"168,458.00",Optional requirement only
Department of Health,Imperial College Healthcare NHS Trust,18/06/2015,Ext Contr Domestics,"Surg, Canc & Cardiovasc Div",Sodexo Limited,3159315,"41,608.32",Optional requirement only
Department of Health,Imperial College Healthcare NHS Trust,16/06/2015,Computer Software/License,Investigative Sciences & C S,Sunquest Information Systems,3157890,"608,600.40",Optional requirement only
Department of Health,Imperial College Healthcare NHS Trust,18/06/2015,Ext Contr Laundry,Directorate Of Strategy,Synergy Health Uk Ltd,3158548,"41,326.32",Optional requirement only
Department of Health,Imperial College Healthcare NHS Trust,18/06/2015,Ext Contr Laundry,Directorate Of Strategy,Synergy Health Uk Ltd,3158549,"42,592.41",Optional requirement only
Department of Health,Imperial College Healthcare NHS Trust,18/06/2015,Ext Contr Laundry,Directorate Of Strategy,Synergy Health Uk Ltd,3158552,"49,667.93",Optional requirement only
Department of Health,Imperial College Healthcare NHS Trust,04/06/2015,Laboratory Chemicals/ Reagents,Investigative Sciences & C S,Sysmex Uk Ltd,3149552,"101,627.10",Optional requirement only
Department of Health,Imperial College Healthcare NHS Trust,10/06/2015,Laboratory Chemicals/ Reagents,Investigative Sciences & C S,Sysmex Uk Ltd,3153485,"101,627.10",Optional requirement only
Department of Health,Imperial College Healthcare NHS Trust,11/06/2015,Laboratory Chemicals/ Reagents,Investigative Sciences & C S,Sysmex Uk Ltd,3153486,"203,254.20",Optional requirement only
Department of Health,Imperial College Healthcare NHS Trust,16/06/2015,Laboratory Chemicals/ Reagents,Investigative Sciences & C S,Sysmex Uk Ltd,3153487,"101,627.10",Optional requirement only
Department of Health,Imperial College Healthcare NHS Trust,09/06/2015,Rent,Directorate Of Strategy,Thames Valley Charitable Housing,3153385,"41,495.88",Optional requirement only
Department of Health,Imperial College Healthcare NHS Trust,23/06/2015,Rent,Directorate Of Strategy,Thames Valley Charitable Housing,3162865,"41,495.88",Optional requirement only
Department of Health,Imperial College Healthcare NHS Trust,23/06/2015,Rent,Directorate Of Strategy,Thames Valley Charitable Housing,3162866,"41,495.88",Optional requirement only
Department of Health,Imperial College Healthcare NHS Trust,02/06/2015,Thames Valley Housing Assoc,Housing Deductions,Thames Valley Charitable Housing,3145292,"111,027.25",Optional requirement only
Department of Health,Imperial College Healthcare NHS Trust,09/06/2015,Jac - Stock,Stock,Unidrug Distribution Group Ltd,3136660,"82,719.00",Optional requirement only
Department of Health,Imperial College Healthcare NHS Trust,09/06/2015,Jac - Stock,Stock,Unidrug Distribution Group Ltd,3139157,"30,000.00",Optional requirement only
Department of Health,Imperial College Healthcare NHS Trust,09/06/2015,Jac - Stock,Stock,Unidrug Distribution Group Ltd,3139184,"41,910.96",Optional requirement only
Department of Health,Imperial College Healthcare NHS Trust,23/06/2015,Internal Recharge: Other,"Surg, Canc & Cardiovasc Div",University Hospitals Bristol Nhs Found.Trust,3163059,"71,285.00",Optional requirement only
Department of Health,Imperial College Healthcare NHS Trust,26/06/2015,Internal Recharge: Other,"Surg, Canc & Cardiovasc Div",University Hospitals Bristol Nhs Found.Trust,3165507,"71,285.00",Optional requirement only
Department of Health,Imperial College Healthcare NHS Trust,26/06/2015,Miscellaneous Expenditure,Division Of Medicine,West Middlesex University Hospital Nhs Trust,3164894,"39,926.00",Optional requirement only
Department of Health,Imperial College Healthcare NHS Trust,09/06/2015,Postage & Carriage,Directorate Of Strategy,Whistl London Limited,3153013,"38,652.85",Optional requirement only
Department of Health,Imperial College Healthcare NHS Trust,04/06/2015,Contr Photocopier Rental,Information & Comms Technology,Xerox Finance,3150442,"193,045.97",Optional requirement only
,,,,,,Sum:,"35,071,070.01",
